fUSD/lending_fUSD_20240425
["ID","MTS","AMOUNT","RATE_DAILY","PERIOD"]
[323537724,1714078240345,-500.0,0.00010958,2]
[323537725,1714078240354,-446.9,0.00010958,2]
[323537726,1714078240364,-500.0,0.00010958,2]
[323537727,1714078240373,-500.0,0.00010958,2]
[323537728,1714078240383,-545.98,0.00010958,2]
[323537729,1714078240392,-500.0,0.00010958,2]
[323537730,1714078240402,-500.0,0.00010958,2]
[323537731,1714078240412,-500.0,0.00010958,2]
[323537732,1714078240421,-500.0,0.00010958,2]
[323537733,1714078240431,-500.0,0.00010958,2]
[323537734,1714078240440,-500.0,0.00010958,2]
[323537735,1714078240452,-500.0,0.00010958,2]
[323537736,1714078240461,-500.0,0.00010958,2]
[323537737,1714078240470,-150.0,0.00010958,2]
[323537738,1714078240479,-260.44,0.00010958,2]
[323537739,1714078240489,-500.0,0.00010958,2]
[323537740,1714078240498,-500.0,0.00010958,2]
[323537741,1714078240507,-500.0,0.00010958,2]
[323537742,1714078240516,-500.0,0.00010958,2]
[323537743,1714078240525,-500.0,0.00010958,2]
[323537744,1714078240535,-500.0,0.00010958,2]
[323537745,1714078240544,-500.0,0.00010958,2]
[323537746,1714078240553,-500.0,0.00010958,2]
[323537747,1714078240562,-500.0,0.00010958,2]
[323537748,1714078240573,-650.54,0.00010958,2]
[323537749,1714078240582,-500.0,0.00010958,2]
[323537750,1714078240592,-500.0,0.00010958,2]
[323537751,1714078240601,-500.0,0.00010958,2]
[323537752,1714078240610,-321.25185812,0.00010958,2]
[323537753,1714078240619,-500.0,0.00010958,2]
[323537754,1714078240629,-500.0,0.00010958,2]
[323537755,1714078240638,-572.8,0.00010958,2]
[323537756,1714078240647,-500.0,0.00010958,2]
[323537757,1714078240656,-500.0,0.00010958,2]
[323537758,1714078240666,-500.0,0.00010958,2]
[323537759,1714078240675,-500.0,0.00010958,2]
[323537760,1714078240683,-504.01,0.00010958,2]
[323537761,1714078240692,-450.85159659,0.00010958,2]
[323537762,1714078240701,-500.0,0.00010958,2]
[323537763,1714078240711,-500.0,0.00010958,2]
[323537764,1714078240719,-500.0,0.00010958,2]
[323537765,1714078240728,-408.5,0.00010958,2]
[323537766,1714078240737,-500.0,0.00010958,2]
[323537767,1714078240746,-500.0,0.00010958,2]
[323537768,1714078240755,-576.72,0.00010958,2]
[323537769,1714078240764,-469.57,0.00010958,2]
[323537770,1714078240775,-280.88,0.00010958,2]
[323537771,1714078240786,-500.0,0.00010958,2]
[323537772,1714078240796,-2182.98,0.00010958,2]
[323537773,1714078240804,-500.0,0.00010958,2]
[323537774,1714078240814,-500.0,0.00010958,2]
[323537775,1714078240826,-273.67176064,0.00010958,2]
[323537776,1714078240835,-500.0,0.00010958,2]
[323537777,1714078240844,-1208.09,0.00010958,2]
[323537778,1714078240854,-5272.1,0.00010958,2]
[323537779,1714078240864,-500.0,0.00010958,2]
[323537780,1714078240873,-500.0,0.00010958,2]
[323537781,1714078240882,-545.98,0.00010958,2]
[323537782,1714078240891,-2181.54,0.00010958,2]
[323537783,1714078240900,-386.49790602,0.00010958,2]
[323537784,1714078240910,-340.07,0.00010958,2]
[323537785,1714078240919,-500.0,0.00010958,2]
[323537786,1714078240928,-500.0,0.00010958,2]
[323537787,1714078240937,-1125.51,0.00010958,2]
[323537788,1714078240947,-304.93,0.00010958,2]
[323537789,1714078240957,-500.0,0.00010958,2]
[323537790,1714078240966,-557.49,0.00010958,2]
[323537791,1714078240976,-500.0,0.00010958,2]
[323537792,1714078240985,-500.0,0.00010958,2]
[323537793,1714078240994,-500.0,0.00010958,2]
[323537794,1714078241004,-1883.4,0.00010958,2]
[323537795,1714078241013,-515.94565761,0.00010958,2]
[323537796,1714078241022,-500.0,0.00010958,2]
[323537797,1714078241032,-500.0,0.00010958,2]
[323537798,1714078241041,-2925.66,0.00010958,2]
[323537799,1714078241051,-500.0,0.00010958,2]
[323537800,1714078241060,-500.0,0.00010958,2]
[323537801,1714078241071,-500.0,0.00010958,2]
[323537802,1714078241080,-500.0,0.00010958,2]
[323537803,1714078241090,-1131.9,0.00010958,2]
[323537804,1714078241099,-628.66,0.00010958,2]
[323537805,1714078241108,-500.0,0.00010958,2]
[323537806,1714078241118,-729.4,0.00010958,2]
[323537807,1714078241127,-704.54,0.00010958,2]
[323537808,1714078241136,-17471.82,0.00010958,2]
[323537809,1714078241144,-2082.01,0.00010958,2]
[323537810,1714078241153,-500.0,0.00010958,2]
[323537811,1714078241162,-418.79,0.00010958,2]
[323537812,1714078241172,-532.88,0.00010958,2]
[323537813,1714078241181,-868.1,0.00010958,2]
[323537814,1714078241190,-796.82,0.00010958,2]
[323537815,1714078241199,-500.0,0.00010958,2]
[323537816,1714078241209,-500.0,0.00010958,2]
[323537817,1714078241217,-563.21,0.00010958,2]
[323537818,1714078241227,-887.7,0.00010958,2]
[323537819,1714078241237,-500.0,0.00010958,2]
[323537820,1714078241247,-500.0,0.00010958,2]
[323537821,1714078241256,-563.14,0.00010958,2]
[323537822,1714078241265,-500.0,0.00010958,2]
[323537823,1714078241275,-500.0,0.00010958,2]
[323537824,1714078241284,-551.6,0.00010958,2]
[323537825,1714078241294,-935.02,0.00010958,2]
[323537826,1714078241303,-500.0,0.00010958,2]
[323537827,1714078241312,-602.67,0.00010958,2]
[323537828,1714078241323,-500.0,0.00010958,2]
[323537829,1714078241332,-883.87,0.00010958,2]
[323537830,1714078241341,-500.0,0.00010958,2]
[323537831,1714078241352,-500.0,0.00010958,2]
[323537832,1714078241362,-500.0,0.00010958,2]
[323537833,1714078241372,-662.46,0.00010958,2]
[323537834,1714078241382,-500.0,0.00010958,2]
[323537835,1714078241391,-797.53,0.00010958,2]
[323537836,1714078241403,-1155.64,0.00010958,2]
[323537837,1714078241413,-500.0,0.00010958,2]
[323537838,1714078241423,-500.0,0.00010958,2]
[323537839,1714078241432,-500.0,0.00010958,2]
[323537840,1714078241442,-544.29,0.00010958,2]
[323537841,1714078241451,-613.36,0.00010958,2]
[323537842,1714078241461,-1937.2,0.00010958,2]
[323537843,1714078241471,-500.0,0.00010958,2]
[323537844,1714078241480,-505.57,0.00010958,2]
[323537845,1714078241490,-500.0,0.00010958,2]
[323537846,1714078241499,-4843.1,0.00010958,2]
[323537847,1714078241509,-500.0,0.00010958,2]
[323537848,1714078241518,-1097.04,0.00010958,2]
[323537849,1714078241527,-709.38,0.00010958,2]
[323537850,1714078241536,-500.0,0.00010958,2]
[323537851,1714078241545,-500.0,0.00010958,2]
[323537852,1714078241554,-500.0,0.00010958,2]
[323537853,1714078241563,-500.0,0.00010958,2]
[323537854,1714078241573,-525.28,0.00010958,2]
[323537855,1714078241582,-690.97,0.00010958,2]
[323537856,1714078241592,-500.0,0.00010958,2]
[323537857,1714078241600,-500.0,0.00010958,2]
[323537858,1714078241610,-2889.82,0.00010958,2]
[323537859,1714078241619,-2685.35,0.00010958,2]
[323537860,1714078241628,-500.0,0.00010958,2]
[323537861,1714078241637,-680.9,0.00010958,2]
[323537862,1714078241647,-542.63,0.00010958,2]
[323537863,1714078241656,-500.0,0.00010958,2]
[323537864,1714078241666,-500.0,0.00010958,2]
[323537865,1714078241674,-1033.29,0.00010958,2]
[323537866,1714078241686,-500.0,0.00010958,2]
[323537867,1714078241695,-500.0,0.00010958,2]
[323537868,1714078241704,-500.0,0.00010958,2]
[323537869,1714078241714,-3350.59,0.00010958,2]
[323537870,1714078241723,-500.0,0.00010958,2]
[323537871,1714078241732,-500.0,0.00010958,2]
[323537872,1714078241741,-500.0,0.00010958,2]
[323537873,1714078241751,-1570.73,0.00010958,2]
[323537874,1714078241761,-1173.12,0.00010958,2]
[323537875,1714078241771,-500.0,0.00010958,2]
[323537876,1714078241783,-2865.13,0.00010958,2]
[323537877,1714078241792,-500.0,0.00010958,2]
[323537878,1714078241802,-1306.01,0.00010958,2]
[323537879,1714078241811,-500.0,0.00010958,2]
[323537880,1714078241821,-500.0,0.00010958,2]
[323537881,1714078241830,-500.0,0.00010958,2]
[323537882,1714078241840,-500.0,0.00010958,2]
[323537883,1714078241850,-7837.11,0.00010958,2]
[323537884,1714078241859,-500.0,0.00010958,2]
[323537885,1714078241869,-500.0,0.00010958,2]
[323537886,1714078241878,-500.0,0.00010958,2]
[323537887,1714078241887,-500.0,0.00010958,2]
[323537888,1714078241896,-500.0,0.00010958,2]
[323537889,1714078241905,-500.0,0.00010958,2]
[323537890,1714078241914,-3696.0,0.00010958,2]
[323537891,1714078241923,-500.0,0.00010958,2]
[323537892,1714078241932,-979.93,0.00010958,2]
[323537893,1714078241941,-500.0,0.00010958,2]
[323537894,1714078241951,-683.18,0.00010958,2]
[323537895,1714078241960,-2766.5,0.00010958,2]
[323537896,1714078241969,-642.6,0.00010958,2]
[323537897,1714078241978,-500.0,0.00010958,2]
[323537898,1714078241987,-1952.39,0.00010958,2]
[323537899,1714078241997,-395.03,0.00010958,2]
[323537900,1714078242006,-3927.35,0.00010958,2]
[323537901,1714078242015,-543.04147978,0.00010958,2]
[323537902,1714078242024,-952.03,0.00010958,2]
[323537903,1714078242033,-575.28,0.00010958,2]
[323537904,1714078242046,-1567.81,0.00010958,2]
[323537905,1714078242056,-500.0,0.00010958,2]
[323537906,1714078242065,-500.0,0.00010958,2]
[323537907,1714078242076,-500.0,0.00010958,2]
[323537908,1714078242085,-1632.67,0.00010958,2]
[323537909,1714078242095,-6078.92,0.00010958,2]
[323537910,1714078242104,-915.27,0.00010958,2]
[323537911,1714078242113,-500.0,0.00010958,2]
[323537912,1714078242123,-500.0,0.00010958,2]
[323537913,1714078242132,-500.0,0.00010958,2]
[323537914,1714078242141,-500.0,0.00010958,2]
[323537915,1714078242150,-500.0,0.00010958,2]
[323537916,1714078242160,-500.0,0.00010958,2]
[323537917,1714078242169,-500.0,0.00010958,2]
[323537918,1714078242179,-17837.02,0.00010958,2]
[323537919,1714078242188,-3568.59,0.00010958,2]
[323537920,1714078242197,-500.0,0.00010958,2]
[323537921,1714078242206,-500.0,0.00010958,2]
[323537922,1714078242215,-3761.54,0.00010958,2]
[323537923,1714078242224,-500.0,0.00010958,2]
[323537924,1714078242233,-500.0,0.00010958,2]
[323537925,1714078242242,-500.0,0.00010958,2]
[323537926,1714078242251,-500.0,0.00010958,2]
[323537927,1714078242260,-293.09415426,0.00010958,2]
[323537928,1714078242269,-500.0,0.00010958,2]
[323537929,1714078242278,-500.0,0.00010958,2]
[323537930,1714078242287,-621.69,0.00010958,2]
[323537931,1714078242296,-1406.24,0.00010958,2]
[323537932,1714078242306,-835.79,0.00010958,2]
[323537933,1714078242315,-692.66,0.00010958,2]
[323537934,1714078242324,-500.0,0.00010958,2]
[323537935,1714078242333,-1744.44,0.00010958,2]
[323537936,1714078242342,-500.0,0.00010958,2]
[323537937,1714078242351,-500.0,0.00010958,2]
[323537938,1714078242360,-1603.99772968,0.00011,3]
[323537939,1714078242370,-509.84844986,0.00011019,2]
[323537940,1714078242379,-210.0,0.00011028,2]
[323537941,1714078242388,-225.07080001,0.00011029,2]
[323537942,1714078242396,-5922.92292159,0.00011029,2]
[323537943,1714078242425,-2350.75626598,0.00011029,2]
[323537944,1714078242475,-1633.63177104,0.00011029,2]
[323537945,1714078242504,-974.08067741,0.00011029,2]
[323537946,1714078242516,-89118.60836398,0.00011029,2]
[323537947,1714078242525,-500.0,0.00011129,2]
[323537948,1714078242534,-500.0,0.00011129,2]
[323537949,1714078242543,-500.0,0.00011129,2]
[323537950,1714078242552,-500.0,0.00011129,2]
[323537951,1714078242561,-500.0,0.00011129,2]
[323537952,1714078242570,-500.0,0.00011129,2]
[323537953,1714078242580,-500.0,0.00011129,2]
[323537954,1714078242588,-500.0,0.00011129,2]
[323537955,1714078242598,-500.0,0.00011129,2]
[323537956,1714078242607,-500.0,0.00011129,2]
[323537957,1714078242616,-500.0,0.00011129,2]
[323537958,1714078242625,-500.0,0.00011129,2]
[323537959,1714078242634,-506.00049359,0.00011129,2]
[323537960,1714078242644,-500.0,0.00011129,2]
[323537961,1714078242653,-500.0,0.00011129,2]
[323537962,1714078242662,-500.0,0.00011129,2]
[323537963,1714078242671,-500.0,0.00011129,2]
[323537964,1714078242681,-500.0,0.00011129,2]
[323537965,1714078242690,-500.0,0.00011129,2]
[323537966,1714078242699,-500.0,0.00011129,2]
[323537967,1714078242709,-500.0,0.00011129,2]
[323537968,1714078242718,-500.0,0.00011129,2]
[323537969,1714078242727,-500.0,0.00011129,2]
[323537970,1714078242737,-500.0,0.00011129,2]
[323537971,1714078242746,-500.0,0.00011129,2]
[323537972,1714078242756,-500.0,0.00011129,2]
[323537973,1714078242766,-500.0,0.00011129,2]
[323537974,1714078242776,-500.0,0.00011129,2]
[323537975,1714078242787,-500.0,0.00011129,2]
[323537976,1714078242796,-500.0,0.00011129,2]
[323537977,1714078242806,-500.0,0.00011129,2]
[323537978,1714078242815,-500.0,0.00011129,2]
[323537979,1714078242825,-500.0,0.00011129,2]
[323537980,1714078242834,-515.56507047,0.00011129,2]
[323537981,1714078242843,-500.0,0.00011129,2]
[323537982,1714078242854,-500.0,0.00011129,2]
[323537983,1714078242863,-500.0,0.00011129,2]
[323537985,1714078242872,-500.0,0.00011129,2]
[323537986,1714078242881,-500.0,0.00011129,2]
[323537987,1714078242890,-500.0,0.00011129,2]
[323537988,1714078242899,-590.97705494,0.00011129,2]
[323537989,1714078242909,-500.0,0.00011129,2]
[323537990,1714078242918,-500.0,0.00011129,2]
[323537991,1714078242927,-500.0,0.00011129,2]
[323537992,1714078242936,-500.0,0.00011129,2]
[323537993,1714078242945,-500.0,0.00011129,2]
[323537994,1714078242954,-500.0,0.00011129,2]
[323537995,1714078242963,-500.0,0.00011129,2]
[323537996,1714078242972,-524.35353056,0.00011129,2]
[323537997,1714078242982,-500.0,0.00011129,2]
[323537998,1714078242991,-301.75,0.00011129,2]
[323537999,1714078243000,-500.0,0.00011129,2]
[323538000,1714078243009,-500.0,0.00011129,2]
[323538001,1714078243019,-646.5,0.00011129,2]
[323538002,1714078243028,-500.0,0.00011129,2]
[323538003,1714078243037,-500.0,0.00011129,2]
[323538004,1714078243047,-500.0,0.00011129,2]
[323538005,1714078243056,-500.0,0.00011129,2]
[323538007,1714078243065,-500.0,0.00011129,2]
[323538008,1714078243075,-500.0,0.00011129,2]
[323538010,1714078243084,-500.0,0.00011129,2]
[323538011,1714078243093,-500.0,0.00011129,2]
[323538012,1714078243103,-500.0,0.00011129,2]
[323538013,1714078243112,-500.0,0.00011129,2]
[323538014,1714078243121,-509.09096962,0.00011129,2]
[323538015,1714078243131,-500.0,0.00011129,2]
[323538017,1714078243140,-343.42,0.00011129,2]
[323538018,1714078243150,-500.0,0.00011129,2]
[323538019,1714078243159,-500.0,0.00011129,2]
[323538020,1714078243168,-333.29,0.00011129,2]
[323538021,1714078243177,-500.0,0.00011129,2]
[323538022,1714078243187,-500.0,0.00011129,2]
[323538023,1714078243196,-500.0,0.00011129,2]
[323538024,1714078243205,-500.0,0.00011129,2]
[323538025,1714078243214,-500.0,0.00011129,2]
[323538026,1714078243223,-500.0,0.00011129,2]
[323538027,1714078243233,-500.0,0.00011129,2]
[323538028,1714078243242,-500.0,0.00011129,2]
[323538031,1714078243251,-500.0,0.00011129,2]
[323538034,1714078243260,-219.0,0.00011129,2]
[323538037,1714078243269,-500.0,0.00011129,2]
[323538040,1714078243278,-500.0,0.00011129,2]
[323538043,1714078243288,-500.0,0.00011129,2]
[323538045,1714078243297,-500.0,0.00011129,2]
[323538046,1714078243306,-516.1,0.00011129,2]
[323538047,1714078243315,-500.0,0.00011129,2]
[323538049,1714078243326,-500.0,0.00011129,2]
[323538051,1714078243335,-500.0,0.00011129,2]
[323538053,1714078243344,-500.0,0.00011129,2]
[323538054,1714078243353,-500.0,0.00011129,2]
[323538056,1714078243362,-500.0,0.00011129,2]
[323538057,1714078243371,-500.0,0.00011129,2]
[323538058,1714078243380,-500.0,0.00011129,2]
[323538059,1714078243390,-500.0,0.00011129,2]
[323538060,1714078243399,-500.0,0.00011129,2]
[323538061,1714078243408,-500.0,0.00011129,2]
[323538062,1714078243417,-500.0,0.00011129,2]
[323538063,1714078243426,-500.0,0.00011129,2]
[323538064,1714078243436,-705.65,0.00011129,2]
[323538065,1714078243445,-500.0,0.00011129,2]
[323538066,1714078243454,-500.0,0.00011129,2]
[323538067,1714078243464,-500.0,0.00011129,2]
[323538068,1714078243473,-500.0,0.00011129,2]
[323538069,1714078243482,-500.0,0.00011129,2]
[323538070,1714078243491,-500.0,0.00011129,2]
[323538071,1714078243500,-500.0,0.00011129,2]
[323538072,1714078243509,-500.0,0.00011129,2]
[323538073,1714078243518,-500.0,0.00011129,2]
[323538074,1714078243528,-500.0,0.00011129,2]
[323538075,1714078243538,-500.0,0.00011129,2]
[323538076,1714078243548,-500.0,0.00011129,2]
[323538077,1714078243558,-500.0,0.00011129,2]
[323538078,1714078243567,-500.0,0.00011129,2]
[323538079,1714078243578,-500.0,0.00011129,2]
[323538080,1714078243588,-500.0,0.00011129,2]
[323538081,1714078243597,-500.0,0.00011129,2]
[323538082,1714078243606,-500.0,0.00011129,2]
[323538083,1714078243616,-549.57,0.00011129,2]
[323538084,1714078243627,-500.0,0.00011129,2]
[323538085,1714078243637,-500.0,0.00011129,2]
[323538086,1714078243647,-573.12,0.00011129,2]
[323538087,1714078243655,-506.5,0.00011129,2]
[323538088,1714078243664,-561.38,0.00011129,2]
[323538090,1714078243673,-500.0,0.00011129,2]
[323538091,1714078243682,-500.0,0.00011129,2]
[323538092,1714078243692,-500.0,0.00011129,2]
[323538093,1714078243701,-500.0,0.00011129,2]
[323538094,1714078243710,-500.0,0.00011129,2]
[323538095,1714078243720,-648.26,0.00011129,2]
[323538096,1714078243729,-500.0,0.00011129,2]
[323538097,1714078243739,-500.0,0.00011129,2]
[323538098,1714078243748,-618.95,0.00011129,2]
[323538099,1714078243757,-500.0,0.00011129,2]
[323538100,1714078243766,-500.0,0.00011129,2]
[323538101,1714078243776,-598.87,0.00011129,2]
[323538102,1714078243787,-602.11,0.00011129,2]
[323538104,1714078243796,-500.0,0.00011129,2]
[323538106,1714078243805,-500.0,0.00011129,2]
[323538108,1714078243814,-500.0,0.00011129,2]
[323538110,1714078243825,-500.0,0.00011129,2]
[323538112,1714078243835,-500.0,0.00011129,2]
[323538114,1714078243844,-500.0,0.00011129,2]
[323538117,1714078243855,-500.0,0.00011129,2]
[323538119,1714078243865,-500.0,0.00011129,2]
[323538121,1714078243874,-500.0,0.00011129,2]
[323538123,1714078243883,-500.0,0.00011129,2]
[323538125,1714078243892,-500.0,0.00011129,2]
[323538126,1714078243901,-500.0,0.00011129,2]
[323538127,1714078243910,-500.0,0.00011129,2]
[323538128,1714078243920,-500.0,0.00011129,2]
[323538129,1714078243930,-500.0,0.00011129,2]
[323538130,1714078243939,-500.0,0.00011129,2]
[323538131,1714078243949,-500.0,0.00011129,2]
[323538132,1714078243958,-500.0,0.00011129,2]
[323538133,1714078244159,-500.0,0.00011129,2]
[323538134,1714078244170,-500.0,0.00011129,2]
[323538135,1714078244179,-500.0,0.00011129,2]
[323538136,1714078244188,-500.0,0.00011129,2]
[323538137,1714078244197,-500.0,0.00011129,2]
[323538138,1714078244206,-197.36,0.00011129,2]
[323538139,1714078244216,-500.0,0.00011129,2]
[323538140,1714078244226,-500.0,0.00011129,2]
[323538141,1714078244235,-500.0,0.00011129,2]
[323538142,1714078244244,-500.0,0.00011129,2]
[323538143,1714078244255,-500.0,0.00011129,2]
[323538144,1714078244264,-500.0,0.00011129,2]
[323538145,1714078244273,-500.0,0.00011129,2]
[323538146,1714078244282,-500.0,0.00011129,2]
[323538147,1714078244291,-500.0,0.00011129,2]
[323538148,1714078244301,-500.0,0.00011129,2]
[323538149,1714078244309,-633.29,0.00011129,2]
[323538150,1714078244318,-500.0,0.00011129,2]
[323538151,1714078244329,-500.0,0.00011129,2]
[323538152,1714078244338,-500.0,0.00011129,2]
[323538153,1714078244347,-500.0,0.00011129,2]
[323538154,1714078244356,-793.01,0.00011129,2]
[323538155,1714078244365,-500.0,0.00011129,2]
[323538156,1714078244375,-500.0,0.00011129,2]
[323538157,1714078244384,-500.0,0.00011129,2]
[323538158,1714078244393,-188.98,0.00011129,2]
[323538159,1714078244403,-500.0,0.00011129,2]
[323538160,1714078244412,-500.0,0.00011129,2]
[323538161,1714078244421,-500.0,0.00011129,2]
[323538162,1714078244430,-500.0,0.00011129,2]
[323538163,1714078244440,-500.0,0.00011129,2]
[323538164,1714078244451,-500.0,0.00011129,2]
[323538165,1714078244461,-500.0,0.00011129,2]
[323538166,1714078244471,-500.0,0.00011129,2]
[323538167,1714078244480,-486.71356844,0.00011129,2]
[323538168,1714078244488,-500.0,0.00011129,2]
[323538169,1714078244497,-321.85,0.00011129,2]
[323538170,1714078244505,-525.79,0.00011129,2]
[323538171,1714078244514,-500.0,0.00011129,2]
[323538172,1714078244523,-500.0,0.00011129,2]
[323538173,1714078244533,-575.9,0.00011129,2]
[323538174,1714078244542,-939.41,0.00011129,2]
[323538175,1714078244551,-500.0,0.00011129,2]
[323538176,1714078244560,-500.0,0.00011129,2]
[323538177,1714078244569,-331.13,0.00011129,2]
[323538178,1714078244579,-500.0,0.00011129,2]
[323538179,1714078244588,-180.86,0.00011129,2]
[323538180,1714078244598,-500.0,0.00011129,2]
[323538181,1714078244609,-500.0,0.00011129,2]
[323538182,1714078244619,-645.34,0.00011129,2]
[323538183,1714078244628,-500.0,0.00011129,2]
[323538184,1714078244638,-500.0,0.00011129,2]
[323538185,1714078244648,-500.0,0.00011129,2]
[323538186,1714078244659,-500.0,0.00011129,2]
[323538187,1714078244669,-3210.39,0.00011129,2]
[323538188,1714078244678,-500.0,0.00011129,2]
[323538189,1714078244687,-1773.12,0.00011129,2]
[323538190,1714078244697,-1832.58,0.00011129,2]
[323538191,1714078244706,-500.0,0.00011129,2]
[323538192,1714078244716,-1873.73,0.00011129,2]
[323538193,1714078244726,-3068.66,0.00011129,2]
[323538194,1714078244735,-500.0,0.00011129,2]
[323538195,1714078244744,-3025.6,0.00011129,2]
[323538196,1714078244754,-500.0,0.00011129,2]
[323538197,1714078244763,-500.0,0.00011129,2]
[323538198,1714078244772,-500.0,0.00011129,2]
[323538199,1714078244784,-269.07,0.00011129,2]
[323538200,1714078244793,-960.8,0.00011129,2]
[323538201,1714078244803,-500.0,0.00011129,2]
[323538202,1714078244812,-500.0,0.00011129,2]
[323538203,1714078244822,-1482.63,0.00011129,2]
[323538204,1714078244832,-527.45320456,0.00011129,2]
[323538205,1714078244842,-2183.12,0.00011129,2]
[323538206,1714078244852,-779.08,0.00011129,2]
[323538207,1714078244861,-500.0,0.00011129,2]
[323538208,1714078244870,-513.53,0.00011129,2]
[323538209,1714078244879,-1203.03,0.00011129,2]
[323538210,1714078244889,-500.0,0.00011129,2]
[323538211,1714078244898,-500.0,0.00011129,2]
[323538212,1714078244907,-3429.68,0.00011129,2]
[323538213,1714078244916,-1645.77,0.00011129,2]
[323538214,1714078244925,-155.14585425,0.0001113,2]
[323538215,1714078244934,-10000.0,0.00011131,2]
[323538216,1714078244944,-158.6542697,0.00011132,2]
[323538217,1714078244953,-563.6279,0.00011198,2]
[323538218,1714078244962,-688.0535,0.00011198,2]
[323538219,1714078244971,-1300.0,0.000112,4]
[323538220,1714078244980,-225.0708,0.00011218,2]
[323538221,1714078244990,-500.0,0.0001123,2]
[323538222,1714078244998,-500.0,0.00011232,2]
[323538223,1714078245008,-485.78,0.00011232,2]
[323538224,1714078245017,-500.0,0.00011232,2]
[323538225,1714078245028,-500.0,0.00011232,2]
[323538226,1714078245037,-500.0,0.00011232,2]
[323538227,1714078245046,-660.05,0.00011232,2]
[323538228,1714078245056,-500.0,0.00011232,2]
[323538229,1714078245065,-500.0,0.00011232,2]
[323538230,1714078245074,-500.0,0.00011232,2]
[323538231,1714078245084,-500.0,0.00011232,2]
[323538232,1714078245093,-500.0,0.00011232,2]
[323538233,1714078245102,-500.0,0.00011232,2]
[323538234,1714078245111,-500.0,0.00011232,2]
[323538235,1714078245120,-500.0,0.00011232,2]
[323538236,1714078245129,-500.0,0.00011232,2]
[323538237,1714078245138,-500.0,0.00011232,2]
[323538238,1714078245148,-500.0,0.00011232,2]
[323538239,1714078245157,-339.57,0.00011232,2]
[323538240,1714078245166,-500.0,0.00011232,2]
[323538241,1714078245175,-500.0,0.00011232,2]
[323538242,1714078245185,-545.98,0.00011232,2]
[323538243,1714078245194,-500.0,0.00011232,2]
[323538244,1714078245203,-615.27,0.00011232,2]
[323538245,1714078245212,-500.0,0.00011232,2]
[323538246,1714078245221,-500.0,0.00011232,2]
[323538247,1714078245231,-286.466809,0.00011232,2]
[323538248,1714078245240,-500.0,0.00011232,2]
[323538249,1714078245249,-150.0,0.00011232,2]
[323538250,1714078245258,-238.09692221,0.00011232,2]
[323538251,1714078245267,-500.0,0.00011232,2]
[323538252,1714078245276,-500.0,0.00011232,2]
[323538253,1714078245285,-500.0,0.00011232,2]
[323538254,1714078245294,-500.0,0.00011232,2]
[323538255,1714078245304,-500.0,0.00011232,2]